[Event "*** Titled Tuesday 3|2 Blitz"]
[Site "Chess.com"]
[Date "2015.09.01"]
[Round "8"]
[White "Mazetovic"]
[Black "rhungaski"]
[Result "0-1"]
[WhiteElo "2391"]
[BlackElo "2475"]
[TimeControl "180+2"]
[EndTime "12:33:20 PDT"]
[Termination "rhungaski won by resignation"]

1. e4 {[%clk 0:03:01.1]} 1... e5 {[%clk 0:03:00]} 2. Nf3 {[%clk 0:03:01.3]} 2...
Nc6 {[%clk 0:03:01.5]} 3. Bb5 {[%clk 0:03:01.6]} 3... a6 {[%clk 0:03:02.6]} 4.
Bxc6 {[%clk 0:03:02.5]} 4... dxc6 {[%clk 0:03:03.4]} 5. O-O {[%clk 0:03:04.1]}
5... f6 {[%clk 0:03:02]} 6. d4 {[%clk 0:03:03.1]} 6... exd4 {[%clk 0:03:03.9]}
7. Nxd4 {[%clk 0:03:03.9]} 7... c5 {[%clk 0:03:04.9]} 8. Ne2 {[%clk 0:03:04.8]}
8... Qxd1 {[%clk 0:03:06.8]} 9. Rxd1 {[%clk 0:03:06.2]} 9... Bd7 {[%clk
0:03:08.2]} 10. Nbc3 {[%clk 0:03:07.6]} 10... O-O-O {[%clk 0:03:08.9]} 11. Be3
{[%clk 0:03:08.3]} 11... Re8 {[%clk 0:03:08.5]} 12. Rd2 {[%clk 0:03:09]} 12...
Bc6 {[%clk 0:03:08.9]} 13. Rad1 {[%clk 0:03:10.5]} 13... b6 {[%clk 0:03:09.6]}
14. f3 {[%clk 0:03:10.9]} 14... Ne7 {[%clk 0:03:05.1]} 15. Kf2 {[%clk
0:03:04.7]} 15... Ng6 {[%clk 0:03:05.3]} 16. Nf4 {[%clk 0:03:04.7]} 16... Ne5
{[%clk 0:03:03.2]} 17. b3 {[%clk 0:03:04.8]} 17... c4 {[%clk 0:03:04]} 18. Nh5
{[%clk 0:03:03.6]} 18... Bb4 {[%clk 0:02:44.3]} 19. Bd4 {[%clk 0:02:22.5]} 19...
Rhg8 {[%clk 0:02:45]} 20. Ng3 {[%clk 0:02:11.2]} 20... g6 {[%clk 0:02:41.7]} 21.
Nge2 {[%clk 0:02:08.6]} 21... cxb3 {[%clk 0:02:42.3]} 22. cxb3 {[%clk
0:02:05.1]} 22... Rgf8 {[%clk 0:02:39.7]} 23. Rc2 {[%clk 0:01:58.8]} 23... Kb7
{[%clk 0:02:27.2]} 24. Be3 {[%clk 0:01:50.1]} 24... f5 {[%clk 0:02:23.1]} 25.
exf5 {[%clk 0:01:50.3]} 25... Rxf5 {[%clk 0:02:22.7]} 26. Nd4 {[%clk 0:01:50.6]}
26... Ng4+ {[%clk 0:02:23]} 0-1

[Event "*** Titled Tuesday 3|2 Blitz"]
[Site "Chess.com"]
[Date "2015.09.01"]
[Round "8"]
[White "AndrewMcStone"]
[Black "myaccount88"]
[Result "1-0"]
[WhiteElo "1934"]
[BlackElo "2124"]
[TimeControl "180+2"]
[EndTime "12:33:47 PDT"]
[Termination "AndrewMcStone won by resignation"]

1. d4 {[%clk 0:03:01.9]} 1... Nf6 {[%clk 0:02:55.9]} 2. c4 {[%clk 0:03:03]} 2...
e6 {[%clk 0:02:54.5]} 3. Nc3 {[%clk 0:03:04.2]} 3... Bb4 {[%clk 0:02:54.1]} 4.
f3 {[%clk 0:03:04.3]} 4... c5 {[%clk 0:02:53.5]} 5. d5 {[%clk 0:03:05.3]} 5...
exd5 {[%clk 0:02:53.6]} 6. cxd5 {[%clk 0:03:06.4]} 6... d6 {[%clk 0:02:54.8]} 7.
e4 {[%clk 0:03:07.9]} 7... O-O {[%clk 0:02:54.9]} 8. Bd3 {[%clk 0:03:04.9]} 8...
b6 {[%clk 0:02:55.4]} 9. Ne2 {[%clk 0:03:05.6]} 9... Ba6 {[%clk 0:02:52.9]} 10.
O-O {[%clk 0:03:06.9]} 10... Re8 {[%clk 0:02:49.9]} 11. Bxa6 {[%clk 0:02:59.9]}
11... Nxa6 {[%clk 0:02:49.8]} 12. Bg5 {[%clk 0:03:01.2]} 12... Nc7 {[%clk
0:02:45.5]} 13. Qe1 {[%clk 0:02:54.9]} 13... h6 {[%clk 0:02:43.9]} 14. Bh4
{[%clk 0:02:53.8]} 14... b5 {[%clk 0:02:37]} 15. Qg3 {[%clk 0:02:33.4]} 15...
Rc8 {[%clk 0:02:28]} 16. f4 {[%clk 0:02:15.6]} 16... Bxc3 {[%clk 0:02:25.4]} 17.
Nxc3 {[%clk 0:02:12]} 17... b4 {[%clk 0:02:25.5]} 18. e5 {[%clk 0:02:13.3]}
18... bxc3 {[%clk 0:02:24.1]} 19. exf6 {[%clk 0:02:13.7]} 19... g6 {[%clk
0:02:24.2]} 20. f5 {[%clk 0:01:58.5]} 1-0

[Event "*** Titled Tuesday 3|2 Blitz"]
[Site "Chess.com"]
[Date "2015.09.01"]
[Round "8"]
[White "FairChess_on_YouTube"]
[Black "AnthonyWirig"]
[Result "1-0"]
[WhiteElo "2712"]
[BlackElo "2529"]
[TimeControl "180+2"]
[EndTime "12:34:33 PDT"]
[Termination "FairChess_on_YouTube won by resignation"]

1. d4 {[%clk 0:03:01.9]} 1... Nf6 {[%clk 0:02:59.4]} 2. Bg5 {[%clk 0:03:02.2]}
2... Ne4 {[%clk 0:02:50.1]} 3. Bf4 {[%clk 0:03:03.1]} 3... d5 {[%clk 0:02:50.4]}
4. f3 {[%clk 0:03:02.5]} 4... Nf6 {[%clk 0:02:50.8]} 5. Nc3 {[%clk 0:03:03.8]}
5... a6 {[%clk 0:02:51.3]} 6. e4 {[%clk 0:03:03.8]} 6... g6 {[%clk 0:02:51.2]}
7. e5 {[%clk 0:02:59.9]} 7... Nh5 {[%clk 0:02:49.7]} 8. Be3 {[%clk 0:03:00.2]}
8... Ng7 {[%clk 0:02:46.6]} 9. Qd2 {[%clk 0:02:44.5]} 9... Nf5 {[%clk
0:02:46.8]} 10. Bf2 {[%clk 0:02:46.1]} 10... h5 {[%clk 0:02:46.9]} 11. O-O-O
{[%clk 0:02:46]} 11... e6 {[%clk 0:02:38.3]} 12. Kb1 {[%clk 0:02:42.5]} 12... b6
{[%clk 0:02:30]} 13. g4 {[%clk 0:02:40.1]} 13... hxg4 {[%clk 0:02:23.1]} 14.
fxg4 {[%clk 0:02:41.8]} 14... Nh4 {[%clk 0:02:24.5]} 15. Be3 {[%clk 0:02:21.3]}
15... Be7 {[%clk 0:02:25.2]} 16. Qf2 {[%clk 0:02:19.1]} 16... c5 {[%clk
0:02:17.5]} 17. dxc5 {[%clk 0:02:19]} 17... bxc5 {[%clk 0:02:14.2]} 18. Bxc5
{[%clk 0:02:14.2]} 18... Nd7 {[%clk 0:02:15.4]} 19. Bd4 {[%clk 0:02:09.2]} 19...
Rb8 {[%clk 0:02:13.2]} 20. Nxd5 {[%clk 0:02:01.7]} 20... exd5 {[%clk 0:02:05.8]}
21. e6 {[%clk 0:02:03.3]} 21... Nf6 {[%clk 0:02:01.9]} 22. g5 {[%clk 0:02:03.9]}
22... Bxe6 {[%clk 0:01:55.1]} 23. gxf6 {[%clk 0:02:01.9]} 23... Bd6 {[%clk
0:01:52.2]} 24. Bxa6 {[%clk 0:01:59.4]} 24... Qa5 {[%clk 0:01:47.6]} 25. Bd3
{[%clk 0:01:58.9]} 25... Ba3 {[%clk 0:01:38.3]} 26. Ne2 {[%clk 0:01:54.1]} 26...
Kd7 {[%clk 0:01:17.4]} 27. b3 {[%clk 0:01:50.8]} 27... Rhc8 {[%clk 0:01:17]} 28.
Qxh4 {[%clk 0:01:47.6]} 1-0

[Event "*** Titled Tuesday 3|2 Blitz"]
[Site "Chess.com"]
[Date "2015.09.01"]
[Round "8"]
[White "HZMC92"]
[Black "Fh2411"]
[Result "1-0"]
[WhiteElo "2279"]
[BlackElo "2191"]
[TimeControl "180+2"]
[EndTime "12:36:11 PDT"]
[Termination "HZMC92 won by resignation"]

1. d4 {[%clk 0:03:01.9]} 1... d5 {[%clk 0:03:00.4]} 2. c4 {[%clk 0:03:03.2]}
2... c6 {[%clk 0:03:01.8]} 3. cxd5 {[%clk 0:03:04.2]} 3... cxd5 {[%clk
0:03:02.2]} 4. Nc3 {[%clk 0:03:06.1]} 4... Nf6 {[%clk 0:03:01.5]} 5. Nf3 {[%clk
0:03:08]} 5... Nc6 {[%clk 0:03:02]} 6. Bf4 {[%clk 0:03:09.9]} 6... Bf5 {[%clk
0:03:02.7]} 7. e3 {[%clk 0:03:10.5]} 7... e6 {[%clk 0:03:03.8]} 8. Bd3 {[%clk
0:03:11.3]} 8... Bxd3 {[%clk 0:03:03.3]} 9. Qxd3 {[%clk 0:03:13.2]} 9... Be7
{[%clk 0:03:03.9]} 10. O-O {[%clk 0:03:13.6]} 10... O-O {[%clk 0:03:02.6]} 11.
Rac1 {[%clk 0:03:14.6]} 11... Nd7 {[%clk 0:02:59.6]} 12. a3 {[%clk 0:03:15.6]}
12... Nb6 {[%clk 0:02:56.5]} 13. Nd2 {[%clk 0:03:16.8]} 13... a6 {[%clk
0:02:50.6]} 14. b4 {[%clk 0:03:17.6]} 14... h6 {[%clk 0:02:35.9]} 15. Bg3 {[%clk
0:03:17.3]} 15... Rc8 {[%clk 0:02:12]} 16. Rc2 {[%clk 0:03:13.8]} 16... Na7
{[%clk 0:02:04.5]} 17. Rfc1 {[%clk 0:03:13.7]} 17... Nc4 {[%clk 0:02:02]} 18.
Nxc4 {[%clk 0:03:14.1]} 18... dxc4 {[%clk 0:02:00.1]} 19. Qe2 {[%clk 0:03:13.2]}
19... b5 {[%clk 0:02:00.6]} 20. Rd1 {[%clk 0:03:09.2]} 20... Bf6 {[%clk
0:01:44.6]} 21. e4 {[%clk 0:03:06.8]} 21... Qb6 {[%clk 0:01:31.6]} 22. e5 {[%clk
0:03:03.4]} 22... Bd8 {[%clk 0:01:24.8]} 23. d5 {[%clk 0:03:02.7]} 23... exd5
{[%clk 0:01:24.3]} 24. Nxd5 {[%clk 0:03:03.6]} 24... Qb7 {[%clk 0:01:11.3]} 25.
Qg4 {[%clk 0:02:58]} 25... Nc6 {[%clk 0:01:03.7]} 26. f4 {[%clk 0:02:53.1]}
26... Bb6+ {[%clk 0:01:01.2]} 27. Kh1 {[%clk 0:02:49.9]} 27... Kh8 {[%clk
0:00:51.8]} 28. f5 {[%clk 0:02:48.4]} 28... Rcd8 {[%clk 0:00:45.4]} 29. f6
{[%clk 0:02:46.4]} 29... g5 {[%clk 0:00:21.2]} 30. Qh5 {[%clk 0:02:37.1]} 30...
Kh7 {[%clk 0:00:19.8]} 31. h4 {[%clk 0:02:36.6]} 31... Nxe5 {[%clk 0:00:18.9]}
32. hxg5 {[%clk 0:02:33.8]} 32... Ng4 {[%clk 0:00:19.8]} 33. Qxg4 {[%clk
0:02:28.4]} 33... Rxd5 {[%clk 0:00:15.4]} 34. Qe4+ {[%clk 0:02:28.2]} 34... Kg8
{[%clk 0:00:16.5]} 35. Rxd5 {[%clk 0:02:26.1]} 35... Qc8 {[%clk 0:00:18]} 36.
gxh6 {[%clk 0:02:17.8]} 36... Kh8 {[%clk 0:00:19.1]} 37. Rg5 {[%clk 0:02:15.4]}
37... Re8 {[%clk 0:00:19.5]} 38. Qg4 {[%clk 0:02:09.7]} 38... Qc6 {[%clk
0:00:16.4]} 39. h7 {[%clk 0:02:03]} 1-0

[Event "*** Titled Tuesday 3|2 Blitz"]
[Site "Chess.com"]
[Date "2015.09.01"]
[Round "8"]
[White "bugsbunny444"]
[Black "Keaton87"]
[Result "0-1"]
[WhiteElo "2301"]
[BlackElo "2420"]
[TimeControl "180+2"]
[EndTime "12:36:36 PDT"]
[Termination "Keaton87 won by resignation"]

1. Nf3 {[%clk 0:03:01.9]} 1... d5 {[%clk 0:02:56.3]} 2. c4 {[%clk 0:03:03]} 2...
e6 {[%clk 0:02:57.1]} 3. g3 {[%clk 0:03:04.5]} 3... Nf6 {[%clk 0:02:58.5]} 4.
Bg2 {[%clk 0:03:06.1]} 4... Be7 {[%clk 0:03:00.1]} 5. O-O {[%clk 0:03:07.7]}
5... O-O {[%clk 0:03:01.6]} 6. b3 {[%clk 0:03:09.4]} 6... b6 {[%clk 0:03:01.6]}
7. Bb2 {[%clk 0:03:10.2]} 7... Bb7 {[%clk 0:03:03.1]} 8. e3 {[%clk 0:03:11.8]}
8... Nbd7 {[%clk 0:03:03]} 9. Nc3 {[%clk 0:03:12.6]} 9... c5 {[%clk 0:03:03.7]}
10. Qe2 {[%clk 0:03:12.9]} 10... a6 {[%clk 0:03:04.1]} 11. cxd5 {[%clk
0:03:13.4]} 11... exd5 {[%clk 0:03:04.9]} 12. d4 {[%clk 0:03:14.8]} 12... Rc8
{[%clk 0:03:04.9]} 13. Rfd1 {[%clk 0:03:10.5]} 13... c4 {[%clk 0:03:04.4]} 14.
Ne5 {[%clk 0:02:58.5]} 14... b5 {[%clk 0:03:01.3]} 15. bxc4 {[%clk 0:02:35.9]}
15... bxc4 {[%clk 0:02:57]} 16. Rab1 {[%clk 0:02:28.2]} 16... Rb8 {[%clk
0:02:53.9]} 17. Ba1 {[%clk 0:02:22.4]} 17... Bd6 {[%clk 0:02:52.4]} 18. Nxc4
{[%clk 0:02:22.5]} 18... Bc7 {[%clk 0:02:27.4]} 19. f4 {[%clk 0:01:38.7]} 19...
dxc4 {[%clk 0:02:20.1]} 20. Bxb7 {[%clk 0:01:35.1]} 20... Nb6 {[%clk 0:02:19.2]}
21. Bf3 {[%clk 0:01:29.2]} 21... Re8 {[%clk 0:02:20.1]} 22. e4 {[%clk
0:01:23.9]} 22... Nfd5 {[%clk 0:02:12.2]} 23. Qd2 {[%clk 0:00:48.5]} 23... Ne7
{[%clk 0:02:02.1]} 24. d5 {[%clk 0:00:45.8]} 24... Bd6 {[%clk 0:01:59.8]} 25.
Kg2 {[%clk 0:00:44.1]} 25... Bc5 {[%clk 0:02:00.8]} 26. Ne2 {[%clk 0:00:29.9]}
26... Qd6 {[%clk 0:01:57.3]} 27. e5 {[%clk 0:00:21.1]} 27... Qg6 {[%clk
0:01:53.5]} 28. Bd4 {[%clk 0:00:21.3]} 28... Bxd4 {[%clk 0:01:39]} 29. Qxd4
{[%clk 0:00:23.2]} 29... Nf5 {[%clk 0:01:40.2]} 30. Qe4 {[%clk 0:00:15.7]} 30...
Nxd5 {[%clk 0:01:25.7]} 31. Rxb8 {[%clk 0:00:13.4]} 31... Nde3+ {[%clk
0:01:26.7]} 32. Kg1 {[%clk 0:00:06.4]} 32... Rxb8 {[%clk 0:01:27.5]} 33. Rb1
{[%clk 0:00:04.8]} 33... Rf8 {[%clk 0:01:20.1]} 34. Nd4 {[%clk 0:00:05.3]} 34...
Nxd4 {[%clk 0:01:17.8]} 0-1

[Event "*** Titled Tuesday 3|2 Blitz"]
[Site "Chess.com"]
[Date "2015.09.01"]
[Round "8"]
[White "kikydu96"]
[Black "MMSANCHEZ"]
[Result "0-1"]
[WhiteElo "2176"]
[BlackElo "2295"]
[TimeControl "180+2"]
[EndTime "12:36:43 PDT"]
[Termination "MMSANCHEZ won by resignation"]

1. e4 {[%clk 0:03:01.9]} 1... e6 {[%clk 0:02:59.4]} 2. d4 {[%clk 0:03:02.3]}
2... d5 {[%clk 0:03:00.9]} 3. Nd2 {[%clk 0:03:03.5]} 3... Nf6 {[%clk 0:03:01.3]}
4. e5 {[%clk 0:03:04.2]} 4... Nfd7 {[%clk 0:03:02.9]} 5. c3 {[%clk 0:03:05.5]}
5... c5 {[%clk 0:03:04.4]} 6. Bd3 {[%clk 0:02:57.6]} 6... Nc6 {[%clk 0:03:05.6]}
7. Ne2 {[%clk 0:02:58.1]} 7... cxd4 {[%clk 0:03:06.7]} 8. cxd4 {[%clk
0:02:58.8]} 8... f6 {[%clk 0:03:08.3]} 9. exf6 {[%clk 0:03:00]} 9... Nxf6 {[%clk
0:03:09.1]} 10. Nf3 {[%clk 0:03:00.4]} 10... Bd6 {[%clk 0:03:09.9]} 11. O-O
{[%clk 0:03:01.9]} 11... Qc7 {[%clk 0:03:11]} 12. Bg5 {[%clk 0:03:02.6]} 12...
O-O {[%clk 0:03:11.6]} 13. Bh4 {[%clk 0:03:03.5]} 13... Nh5 {[%clk 0:02:57.3]}
14. Qc2 {[%clk 0:03:03.8]} 14... h6 {[%clk 0:02:54.2]} 15. Bh7+ {[%clk
0:03:03.3]} 15... Kh8 {[%clk 0:02:54]} 16. Bg6 {[%clk 0:03:04.9]} 16... Rxf3
{[%clk 0:02:54.3]} 17. Bxh5 {[%clk 0:03:04.3]} 17... Rf5 {[%clk 0:02:47.9]} 18.
Bg6 {[%clk 0:02:58.4]} 18... Bxh2+ {[%clk 0:02:47.3]} 19. Kh1 {[%clk 0:02:58.7]}
19... Bd6 {[%clk 0:02:47.7]} 20. Bxf5 {[%clk 0:02:58.3]} 20... exf5 {[%clk
0:02:49]} 21. f4 {[%clk 0:02:50.4]} 21... Qf7 {[%clk 0:02:46.5]} 22. Rf3 {[%clk
0:02:22.8]} 22... Be6 {[%clk 0:02:31.6]} 23. Re1 {[%clk 0:02:15.3]} 23... Rc8
{[%clk 0:02:28.7]} 24. Qd2 {[%clk 0:02:14.6]} 24... Bb4 {[%clk 0:02:11.3]} 25.
Nc3 {[%clk 0:02:15.1]} 25... Na5 {[%clk 0:02:12.3]} 26. Qe2 {[%clk 0:02:13.1]}
26... Bd7 {[%clk 0:02:05]} 27. Be7 {[%clk 0:02:06.7]} 27... Re8 {[%clk
0:02:00.7]} 28. Re3 {[%clk 0:02:07]} 28... Nc4 {[%clk 0:01:55.9]} 29. a3 {[%clk
0:01:33.5]} 29... Nxe3 {[%clk 0:01:51.3]} 30. Bxb4 {[%clk 0:01:26.6]} 30... Ng4
{[%clk 0:01:50.5]} 31. Qxe8+ {[%clk 0:01:01.2]} 31... Bxe8 {[%clk 0:01:51]} 32.
Re7 {[%clk 0:01:02.8]} 32... Qh5+ {[%clk 0:01:50.7]} 33. Kg1 {[%clk 0:01:04.4]}
33... Qh2+ {[%clk 0:01:51.5]} 34. Kf1 {[%clk 0:01:05.6]} 34... Qh1+ {[%clk
0:01:52.7]} 35. Ke2 {[%clk 0:01:07.1]} 35... Qxg2+ {[%clk 0:01:53.9]} 36. Kd3
{[%clk 0:01:07.1]} 36... Bc6 {[%clk 0:01:48]} 37. Bc5 {[%clk 0:01:01.1]} 37...
Qf3+ {[%clk 0:01:46]} 38. Kc2 {[%clk 0:01:01.1]} 38... Qxf4 {[%clk 0:01:45.6]}
39. Bxa7 {[%clk 0:00:58.3]} 39... Ne3+ {[%clk 0:01:43.3]} 40. Kb3 {[%clk
0:00:58.2]} 40... Nc4 {[%clk 0:01:44.3]} 41. Bc5 {[%clk 0:00:57.4]} 41... Qd2
{[%clk 0:01:39]} 42. Re2 {[%clk 0:00:56.4]} 42... Qd3 {[%clk 0:01:26.6]} 43. Rg2
{[%clk 0:00:53.6]} 43... Ne3 {[%clk 0:01:24.9]} 0-1

[Event "*** Titled Tuesday 3|2 Blitz"]
[Site "Chess.com"]
[Date "2015.09.01"]
[Round "8"]
[White "arnacman"]
[Black "wonderfultime"]
[Result "1-0"]
[WhiteElo "2276"]
[BlackElo "2611"]
[TimeControl "180+2"]
[EndTime "12:37:06 PDT"]
[Termination "arnacman won by resignation"]

1. e4 {[%clk 0:02:46.9]} 1... c5 {[%clk 0:03:00.9]} 2. a3 {[%clk 0:02:46.2]}
2... b6 {[%clk 0:02:57.2]} 3. Nf3 {[%clk 0:02:44.2]} 3... Bb7 {[%clk 0:02:58.5]}
4. Nc3 {[%clk 0:02:44.9]} 4... Nc6 {[%clk 0:02:54.7]} 5. d4 {[%clk 0:02:45.2]}
5... cxd4 {[%clk 0:02:56.6]} 6. Nxd4 {[%clk 0:02:46.6]} 6... Nf6 {[%clk
0:02:55.7]} 7. Be3 {[%clk 0:02:42.1]} 7... g6 {[%clk 0:02:53.6]} 8. f3 {[%clk
0:02:41.8]} 8... Bg7 {[%clk 0:02:54.6]} 9. Qd2 {[%clk 0:02:39.9]} 9... Rc8
{[%clk 0:02:54.4]} 10. O-O-O {[%clk 0:02:33.8]} 10... O-O {[%clk 0:02:54.6]} 11.
h4 {[%clk 0:02:25.8]} 11... d5 {[%clk 0:02:55.1]} 12. Nxc6 {[%clk 0:02:21.6]}
12... Rxc6 {[%clk 0:02:49.2]} 13. Bb5 {[%clk 0:02:03.7]} 13... Rc8 {[%clk
0:02:37.4]} 14. exd5 {[%clk 0:01:57.6]} 14... a6 {[%clk 0:02:34.9]} 15. Ba4
{[%clk 0:01:48.8]} 15... Nd7 {[%clk 0:02:32.4]} 16. h5 {[%clk 0:01:27.3]} 16...
Nc5 {[%clk 0:02:19.6]} 17. Bb3 {[%clk 0:01:22.8]} 17... Nxb3+ {[%clk 0:02:20.1]}
18. cxb3 {[%clk 0:01:23]} 18... Qd6 {[%clk 0:02:16.9]} 19. Bd4 {[%clk
0:01:16.6]} 19... f6 {[%clk 0:02:03.9]} 20. hxg6 {[%clk 0:01:15.6]} 20... hxg6
{[%clk 0:02:05.8]} 21. Be3 {[%clk 0:01:08.4]} 21... Rf7 {[%clk 0:01:54]} 22. Bh6
{[%clk 0:01:05.5]} 22... Bh8 {[%clk 0:01:51.7]} 23. Bf4 {[%clk 0:01:01.2]} 23...
Qd7 {[%clk 0:01:53.1]} 24. g4 {[%clk 0:00:55.5]} 24... e5 {[%clk 0:01:40.4]} 25.
dxe6 {[%clk 0:00:50.1]} 25... Qxe6 {[%clk 0:01:41.8]} 26. Qh2 {[%clk 0:00:48.4]}
26... Bg7 {[%clk 0:01:11.4]} 27. Qh7+ {[%clk 0:00:48.1]} 27... Kf8 {[%clk
0:01:13]} 28. Bh6 {[%clk 0:00:47.5]} 28... Qxb3 {[%clk 0:00:52.7]} 29. Qh8+
{[%clk 0:00:41.3]} 29... Ke7 {[%clk 0:00:53.2]} 30. Rhe1+ {[%clk 0:00:41.5]}
30... Qe6 {[%clk 0:00:54.4]} 31. Rxe6+ {[%clk 0:00:39.5]} 31... Kxe6 {[%clk
0:00:56.3]} 32. Qh7 {[%clk 0:00:32.9]} 32... Rh8 {[%clk 0:00:57.3]} 33. Qxg6
{[%clk 0:00:29.7]} 33... Bxh6+ {[%clk 0:00:58.6]} 34. Kb1 {[%clk 0:00:30.1]}
34... Rg7 {[%clk 0:00:48.8]} 35. Qf5+ {[%clk 0:00:30.3]} 35... Ke7 {[%clk
0:00:48.3]} 36. Rd7+ {[%clk 0:00:25.9]} 36... Ke8 {[%clk 0:00:48]} 37. Qe6+
{[%clk 0:00:26.6]} 1-0

[Event "*** Titled Tuesday 3|2 Blitz"]
[Site "Chess.com"]
[Date "2015.09.01"]
[Round "8"]
[White "oggy1984"]
[Black "pKiLz5Rn9b"]
[Result "1-0"]
[WhiteElo "2426"]
[BlackElo "2409"]
[TimeControl "180+2"]
[EndTime "12:37:11 PDT"]
[Termination "oggy1984 won by resignation"]

1. d4 {[%clk 0:03:01.3]} 1... e6 {[%clk 0:03:00.9]} 2. c4 {[%clk 0:03:02]} 2...
Nf6 {[%clk 0:03:01.9]} 3. Nc3 {[%clk 0:02:55.7]} 3... Bb4 {[%clk 0:03:02.5]} 4.
Qc2 {[%clk 0:02:55.7]} 4... d5 {[%clk 0:03:03.2]} 5. cxd5 {[%clk 0:02:54.1]}
5... exd5 {[%clk 0:03:04]} 6. Bg5 {[%clk 0:02:54]} 6... h6 {[%clk 0:03:02.3]} 7.
Bh4 {[%clk 0:02:49.3]} 7... c5 {[%clk 0:03:03.2]} 8. dxc5 {[%clk 0:02:43.1]}
8... g5 {[%clk 0:03:03.2]} 9. Bg3 {[%clk 0:02:40.8]} 9... Ne4 {[%clk 0:03:04.8]}
10. e3 {[%clk 0:02:36.7]} 10... Qa5 {[%clk 0:03:05.3]} 11. Ne2 {[%clk
0:02:34.7]} 11... Bf5 {[%clk 0:03:01]} 12. Be5 {[%clk 0:02:29]} 12... O-O {[%clk
0:03:00.4]} 13. Nd4 {[%clk 0:02:23.7]} 13... Bg6 {[%clk 0:02:50.4]} 14. Nb3
{[%clk 0:02:21.6]} 14... Nxc3 {[%clk 0:02:37.8]} 15. Bxc3 {[%clk 0:02:18.3]}
15... Bxc3+ {[%clk 0:02:09]} 16. Qxc3 {[%clk 0:02:14.1]} 16... Qxc3+ {[%clk
0:02:09.9]} 17. bxc3 {[%clk 0:02:16]} 17... Nd7 {[%clk 0:02:11.3]} 18. Rd1
{[%clk 0:02:12.7]} 18... Nf6 {[%clk 0:02:10.4]} 19. c4 {[%clk 0:02:12.9]} 19...
Bc2 {[%clk 0:02:02]} 20. Rc1 {[%clk 0:02:09]} 20... Bxb3 {[%clk 0:02:00.3]} 21.
axb3 {[%clk 0:02:09]} 21... Rfd8 {[%clk 0:01:57]} 22. cxd5 {[%clk 0:02:05.4]}
22... Nxd5 {[%clk 0:01:58.1]} 23. g3 {[%clk 0:01:58.7]} 23... Nb4 {[%clk
0:01:52.1]} 24. Rc4 {[%clk 0:01:52.8]} 24... a5 {[%clk 0:01:50.4]} 25. Bg2
{[%clk 0:01:47.5]} 25... Nd3+ {[%clk 0:01:50.4]} 26. Ke2 {[%clk 0:01:43.9]}
26... Ne5 {[%clk 0:01:51.4]} 27. Re4 {[%clk 0:01:41.7]} 27... Nc6 {[%clk
0:01:51.2]} 28. h4 {[%clk 0:01:39.8]} 28... Kg7 {[%clk 0:01:38.7]} 29. hxg5
{[%clk 0:01:39.9]} 29... hxg5 {[%clk 0:01:39.4]} 30. Rg4 {[%clk 0:01:36.8]}
30... f6 {[%clk 0:01:40.6]} 31. Ra4 {[%clk 0:01:33.3]} 31... Ra7 {[%clk
0:01:34]} 32. Rha1 {[%clk 0:01:33]} 32... Rb8 {[%clk 0:01:26]} 33. b4 {[%clk
0:01:28.6]} 33... Kf7 {[%clk 0:01:09.4]} 34. b5 {[%clk 0:01:25.9]} 34... Ne5
{[%clk 0:01:05.1]} 35. Rxa5 {[%clk 0:01:22.2]} 35... Rxa5 {[%clk 0:01:06.2]} 36.
Rxa5 {[%clk 0:01:23.7]} 36... Nd7 {[%clk 0:01:07.9]} 37. c6 {[%clk 0:01:20.3]}
37... bxc6 {[%clk 0:01:08.7]} 38. bxc6 {[%clk 0:01:18.5]} 38... Ne5 {[%clk
0:01:09.2]} 39. c7 {[%clk 0:01:15.9]} 39... Rb2+ {[%clk 0:00:56.3]} 40. Kd1
{[%clk 0:01:11.3]} 40... Nd3 {[%clk 0:00:48.2]} 41. c8=Q {[%clk 0:01:07]} 1-0

[Event "*** Titled Tuesday 3|2 Blitz"]
[Site "Chess.com"]
[Date "2015.09.01"]
[Round "8"]
[White "ChadaevNikolay"]
[Black "Storne89"]
[Result "1-0"]
[WhiteElo "2615"]
[BlackElo "2479"]
[TimeControl "180+2"]
[EndTime "12:37:22 PDT"]
[Termination "ChadaevNikolay won by resignation"]

1. d4 {[%clk 0:03:01.8]} 1... d5 {[%clk 0:02:57.6]} 2. c4 {[%clk 0:03:02.2]}
2... c6 {[%clk 0:02:58.9]} 3. Nf3 {[%clk 0:03:02.2]} 3... Nf6 {[%clk 0:03:00]}
4. g3 {[%clk 0:03:02.9]} 4... g6 {[%clk 0:02:54.1]} 5. Bg2 {[%clk 0:03:03.5]}
5... Bg7 {[%clk 0:02:55.4]} 6. O-O {[%clk 0:03:04]} 6... O-O {[%clk 0:02:56.5]}
7. Qa4 {[%clk 0:03:05.1]} 7... Nfd7 {[%clk 0:02:53.9]} 8. cxd5 {[%clk
0:03:02.5]} 8... cxd5 {[%clk 0:02:49.5]} 9. Nc3 {[%clk 0:03:02.4]} 9... Nb6
{[%clk 0:02:46.7]} 10. Qd1 {[%clk 0:03:00.9]} 10... Nc6 {[%clk 0:02:47.9]} 11.
Bf4 {[%clk 0:03:00.3]} 11... a6 {[%clk 0:02:46.7]} 12. Rc1 {[%clk 0:02:49.5]}
12... Bg4 {[%clk 0:02:46.4]} 13. Ne5 {[%clk 0:02:46]} 13... Nxe5 {[%clk
0:02:41.7]} 14. Bxe5 {[%clk 0:02:39.4]} 14... f6 {[%clk 0:02:28]} 15. Bf4 {[%clk
0:02:37.2]} 15... Be6 {[%clk 0:02:13.1]} 16. Na4 {[%clk 0:01:59.7]} 16... Nxa4
{[%clk 0:02:08.7]} 17. Qxa4 {[%clk 0:02:01.6]} 17... g5 {[%clk 0:02:04.5]} 18.
Bd2 {[%clk 0:01:57.7]} 18... Qb6 {[%clk 0:01:38.1]} 19. Qb4 {[%clk 0:01:50.1]}
19... Qd6 {[%clk 0:00:48.2]} 20. Qxd6 {[%clk 0:01:48.4]} 20... exd6 {[%clk
0:00:49.6]} 21. Bb4 {[%clk 0:01:45.5]} 21... Rfd8 {[%clk 0:00:43.8]} 22. Rc7
{[%clk 0:01:46.1]} 22... b5 {[%clk 0:00:41]} 23. Ba5 {[%clk 0:01:43.4]} 23...
Rdc8 {[%clk 0:00:40.7]} 24. Rfc1 {[%clk 0:01:40.9]} 24... Rxc7 {[%clk 0:00:42]}
25. Rxc7 {[%clk 0:01:41.4]} 25... Rc8 {[%clk 0:00:43.7]} 26. Bxd5 {[%clk
0:01:28.2]} 26... Re8 {[%clk 0:00:39.3]} 27. Bxe6+ {[%clk 0:01:25.9]} 27... Rxe6
{[%clk 0:00:40.6]} 28. e3 {[%clk 0:01:25.5]} 28... f5 {[%clk 0:00:42.1]} 29. Bc3
{[%clk 0:01:24.9]} 29... d5 {[%clk 0:00:38.6]} 30. Rd7 {[%clk 0:01:21.3]} 30...
f4 {[%clk 0:00:38.6]} 31. gxf4 {[%clk 0:01:22]} 31... gxf4 {[%clk 0:00:40]} 32.
exf4 {[%clk 0:01:23.5]} 32... Re4 {[%clk 0:00:40.6]} 33. Rxd5 {[%clk 0:01:24.3]}
33... Rxf4 {[%clk 0:00:41.9]} 34. a3 {[%clk 0:01:22.2]} 34... Rg4+ {[%clk
0:00:37.5]} 35. Kf1 {[%clk 0:01:22.9]} 35... Rh4 {[%clk 0:00:38.9]} 36. Kg2
{[%clk 0:01:23.9]} 36... Rg4+ {[%clk 0:00:39.8]} 37. Kf3 {[%clk 0:01:24.4]}
37... Rh4 {[%clk 0:00:41.2]} 38. Kg3 {[%clk 0:01:24.8]} 38... Rh6 {[%clk
0:00:40.8]} 39. h4 {[%clk 0:01:24.6]} 39... Bf6 {[%clk 0:00:40.9]} 40. h5 {[%clk
0:01:23.9]} 40... Bg7 {[%clk 0:00:42.5]} 41. f4 {[%clk 0:01:24.4]} 41... Re6
{[%clk 0:00:43]} 42. Rd8+ {[%clk 0:01:23]} 42... Kf7 {[%clk 0:00:43.9]} 43. Rd7+
{[%clk 0:01:23.7]} 43... Re7 {[%clk 0:00:35.5]} 44. Rxe7+ {[%clk 0:01:23.8]}
44... Kxe7 {[%clk 0:00:37.4]} 45. Kf3 {[%clk 0:01:18.4]} 45... Kd6 {[%clk
0:00:34.7]} 46. Ke4 {[%clk 0:01:19.4]} 46... Bf6 {[%clk 0:00:35.9]} 47. b3
{[%clk 0:01:14.9]} 47... Bd8 {[%clk 0:00:36.6]} 48. a4 {[%clk 0:01:15.7]} 48...
bxa4 {[%clk 0:00:35.4]} 49. bxa4 {[%clk 0:01:16.9]} 1-0